Cogmind - Beta 15 @@@ ROGUE MODE // 2025.05.24 @ 17:03:19 Player: Epsilon 11 Result: Destroyed by G-50 Soldier with Heavy Laser Performance ------------- Evolutions (5) 2500 Regions Visited (5) 1000 Robots Destroyed (69) 345 Value Destroyed (2631) 2631 Prototype IDs (25) 500 Alien Tech Used (0) 0 Bonus (800) 800 TOTAL SCORE: 7776 Bonus ------- Registered with UFD 300 Met Optimus in HQ 500 Cogmind --------- Core Integrity 0/1000 Matter 245/300 Energy 315/315 System Corruption 20% Temperature Cool (9) Movement Flying (35) Location -5/Factory Parts ------- > --- POWER (1) -------- Neutrino Core > --- PROPULSION (7) --- Makeshift Flight Unit Improved Diametric Drive Flightbrick > --- UTILITY (7+3) ---- Improved Melee Analysis Suite Advanced Hacking Suite > --- WEAPON (2) ------- Companion Sword > --- INVENTORY (5) ---- Advanced Heat Sink Advanced EM Disruption Field KE Penetrator Improved Remote Datajack PL-3XN's Ring of Power Peak State ------------ > --- POWER ------------ Micro Nuclear Core Neutrino Core > --- PROPULSION ------- Compact Wheel Compact Wheel Armored Huge Wheel Armored Huge Wheel > --- UTILITY ---------- Advanced Heat Sink Large Storage Unit Advanced Targeting Computer Core Analyzer Advanced Recoil Stabilizer Improved Medium Armor Plating Tower Shield Makeshift Hacking Suite > --- WEAPON ----------- Arc Projector Flak Gun KE Penetrator KE Penetrator > --- INVENTORY -------- Improved Deuterium Engine Angular Momentum Engine Makeshift Flight Unit Makeshift Flight Unit Flightbrick Improved Melee Analysis Suite Advanced Melee Analysis Suite Makeshift Hammer Companion Sword DRS Beacon [Rating: 102] Favorites ----------- Power Micro Nuclear Core Engine Improved Ion Engine Power Core Micro Nuclear Core Propulsion Compact Wheel Treads Improved Treads Leg Armored Leg Wheel Compact Wheel Flight Unit Makeshift Flight Unit Utility Large Storage Unit Device Advanced Heat Sink Storage Large Storage Unit Processor Advanced Targeting Computer Hackware Makeshift Hacking Suite Protection Tower Shield Weapon Improved Assault Rifle Energy Gun Arc Projector Energy Cannon Subdweller Beam Cannon Ballistic Gun Improved Assault Rifle Ballistic Cannon Battle Cannon Launcher Subdweller Shrapnel Launcher Impact Weapon Makeshift Hammer Slashing Weapon Companion Sword Special Melee Weapon Improved Datajack Build | -11 -10 -10 -7 -7 -5 ------- Run | Yrd Mat Sub Rec Scr Fac Slots Evolved 10 | . . . . . 10 Power . | . . . . . . Propulsion 5 | . . . . . 5 Utility 5 | . . . . . 5 Weapon . | . . . . . . Parts Attached 85 | 7 6 20 11 9 32 Power 10 | 2 . 2 2 2 2 Engine 7 | 2 . 2 1 2 . Core 3 | . . . 1 . 2 Reactor . | . . . . . . Propulsion 25 | 2 . 3 4 2 14 Treads 2 | . . . . . 2 Leg 7 | . . . . . 7 Wheel 11 | 2 . 3 4 1 1 Hover . | . . . . . . Flight 5 | . . . . 1 4 Utility 25 | 1 4 4 3 . 13 Device 7 | . . 2 1 . 4 Storage 2 | 1 1 . . . . Processor 6 | . 1 . 1 . 4 Hackware 2 | . . . . . 2 Protection 8 | . 2 2 1 . 3 Artifact . | . . . . . . Weapon 25 | 2 2 11 2 5 3 Energy Gun 6 | . . 3 1 2 . Energy Cannon 1 | . . 1 . . . Ballistic Gun 11 | 2 2 3 1 1 2 Ballistic Cannon 1 | . . 1 . . . Launcher 2 | . . 2 . . . Special Weapon . | . . . . . . Impact Weapon 1 | . . 1 . . . Slashing Weapon 2 | . . . . 1 1 Piercing Weapon . | . . . . . . Special Melee Weapon 1 | . . . . 1 . Unidentified Prototypes 6 | . 1 . 1 . 4 Parts Lost 24 | . . 5 1 . 18 Power 3 | . . 1 . . 2 Propulsion 12 | . . 2 1 . 9 Utility 7 | . . 2 . . 5 Weapon 2 | . . . . . 2 Highest Loss Streak 12 | . . 2 1 . 12 To Critical Strikes . | . . . . . . Average Backups 7 | . 7 5 9 10 8 Power . | . 1 . . . 1 Propulsion 2 | . 5 1 4 4 2 Utility 1 | . . . 2 3 2 Weapon 2 | . . 2 2 2 1 Tool/Special . | . . . . . . Unused Backups 20 | . 1 10 . 6 3 Power 1 | . . . . 1 . Propulsion 9 | . . 5 . 4 . Utility 4 | . . 1 . 1 2 Weapon 3 | . 1 2 . . . Tool/Special 3 | . . 2 . . 1 Average Slot Usage (%) 85 | . 98 84 90 85 73 Engine 9 | . 14 13 8 7 . Core 3 | . . . 5 7 5 Wheel 24 | . 28 27 26 24 10 Device 1 | . . . 1 . 6 Storage 5 | . 14 2 8 7 4 Processor 4 | . 6 . 5 7 10 Protection 9 | . 6 12 5 7 5 Energy Gun 6 | . . 2 13 12 3 Ballistic Gun 14 | . 28 16 13 10 3 Ballistic Cannon 1 | . . 3 . . . Peak Build Rating 102 | 6 12 20 55 67 102 Average Rating 36 | 4 10 13 47 57 80 On Entrance 26 | . 6 12 18 55 67 Naked Turns . | . . . . . . Heaviest Build 105 | 14 34 36 90 93 105 Greatest Support 123 | 32 32 36 68 64 123 Greatest Overweight (x) 2 | . 1 1 2 2 1 Average Overweight (x) . | . . . 1 1 . Largest Inventory Capacity 15 | 8 15 15 15 15 15 Average Capacity 11 | 7 12 6 14 15 14 Most Carried 15 | 1 9 15 15 15 15 Average Carried 9 | . 7 6 13 14 12 Final Capacity 15 | 8 15 15 15 15 5 Final Carried 15 | 1 9 15 15 15 5 Class Distribution -------------------- 58% | Mutant 29% | Scavenger-Gunner 6% | Scavenger-Mutant 3% | Subdweller-Mutant 3% | Gunner Dominant Class ---------------- Mutant | -10/Materials Mutant | -10/Subcaves Scavenger-Gunner | -7/Recycling Scavenger-Gunner | -7/Scraptown Scavenger-Gunner | -5/Factory Resources | -11 -10 -10 -7 -7 -5 ----------- Run | Yrd Mat Sub Rec Scr Fac Matter Collected 2647 | 216 207 1193 255 30 746 Remotely . | . . . . . . Salvage Created 3233 | . 341 1006 361 . 1525 Parts 180 | . 29 68 17 . 66 Haulers Intercepted 2 | . 2 . . . . Recyclers Shooed . | . . . . . . Parts Field Recycled . | . . . . . . Retrieved Matter . | . . . . . . Parts Self-Destructed 22 | . . 22 . . . Prevented . | . . . . . . Kills | -11 -10 -10 -7 -7 -5 ------- Run | Yrd Mat Sub Rec Scr Fac Combat Hostiles Destroyed 59 | . 8 25 1 . 25 Melee 9 | . . . . . 9 Guns 44 | . 8 19 1 . 16 Cannons 4 | . . 4 . . . AOE 2 | . . 2 . . . Classes Destroyed 13 | . 5 3 1 . 4 Builder 1 | . 1 . . . . Tunneler 1 | . 1 . . . . Hauler 2 | . 2 . . . . Recycler 4 | . . . 4 . . Turret 2 | . . 2 . . . Swarmer 12 | . 6 4 . . 2 Grunt 14 | . 2 2 . . 10 Brawler 2 | . . . . . 2 Duelist 1 | . . . . . 1 Sentry 5 | . . 1 1 . 3 Specialist 1 | . . . . . 1 Programmer 6 | . . . . . 6 Subdweller 18 | . . 18 . . . Best Kill Streak 4 | . 4 4 2 . 4 Combat Bots Only 4 | . 3 4 1 . 4 Max Kills in Single Turn 2 | . 2 2 1 . 2 Gunslinging 1 | . 1 . . . 1 Exploded 2 | . . 2 . . . Melee 1 | . . . . . 1 Uniques/NPCs Destroyed . | . . . . . . Combat | -11 -10 -10 -7 -7 -5 -------- Run | Yrd Mat Sub Rec Scr Fac Hostile Shots Fired 798 | . 13 165 54 . 566 Missed 276 | . 10 47 9 . 210 Deflected 18 | . . . . . 18 Hits 522 | . 3 118 45 . 356 Melee 14 | . . . . . 14 Projectile 508 | . 3 118 45 . 342 Critical Strikes 16 | . . 2 . . 14 Damage Taken 8048 | . 33 1752 336 . 5927 Core 1258 | . 9 180 58 . 1011 Absorbed by Shields 213 | . . . . . 213 Core Remaining (%) 50 | 100 . . . 1 . Volleys Fired 189 | . 17 117 9 . 46 Largest 4 | . 2 2 4 . 4 Hottest 218 | . 46 108 173 . 218 Shots Fired 393 | . 35 203 21 . 134 Gun 331 | . 35 141 21 . 134 Cannon 59 | . . 59 . . . Launcher 3 | . . 3 . . . Special . | . . . . . . Kinetic 320 | . 35 186 10 . 89 Thermal 39 | . . 17 10 . 12 Explosive . | . . . . . . Electromagnetic 34 | . . . 1 . 33 Robot Hit Streak 27 | . 7 27 9 . 8 Robot Miss Streak 6 | . 3 4 1 . 6 Penetration Max 1 | . . . . . 1 Secondary Targets 6 | . 2 2 . . 2 Max Gunslinging Chain 1 | . 1 1 . . 1 Shots Hit Robots 293 | . 25 126 16 1 125 Core Hits 157 | . 14 49 7 . 87 Critical Kills 2 | . . 1 . . 1 Critical Parts Destroyed 1 | . . . 1 . . Critical Strikes 5 | . . 3 1 . 1 Destroy 3 | . . 1 1 . 1 Blast 2 | . . 2 . . . Melee Attacks 50 | . . 3 . 1 46 Impact 3 | . . 3 . . . Slashing 46 | . . . . . 46 Piercing . | . . . . . . Sneak Attacks 1 | . . . . 1 . Combat Hostiles . | . . . . . . Follow-up Attacks . | . . . . . . Martial Strikes 6 | . . . . . 6 Damage Inflicted 6204 | . 391 2357 324 . 3132 Guns 4328 | . 391 1756 324 . 1857 Cannons 382 | . . 382 . . . Explosions 219 | . . 219 . . . Melee 1275 | . . . . . 1275 Ramming . | . . . . . . Kinetic 4067 | . 391 2238 130 . 1308 Thermal 593 | . . 119 194 . 280 Explosive . | . . . . . . Electromagnetic 269 | . . . . . 269 Impact . | . . . . . . Slashing 1275 | . . . . . 1275 Piercing . | . . . . . . Highest Corruption 20 | . 5 5 5 . 20 Average Corruption 5 | . 3 5 5 . 8 Corruption Purged . | . . . . . . Corruption Blocked . | . . . . . . Effects 146 | . 8 99 19 . 20 Message Errors 33 | . 1 24 2 . 6 Matter Fused 40 | . 3 27 5 . 5 Heat Flow Errors 15 | . 1 8 4 . 2 Energy Discharges 23 | . 1 16 3 . 3 Parts Rejected 1 | . . 1 . . . Data Loss (minor) 19 | . . 15 3 . 1 Data Loss (major) 7 | . 1 3 1 . 2 Misfires 6 | . 1 4 1 . . Misdirections 1 | . . . . . 1 Weapon Failures 1 | . . 1 . . . Overload Shots . | . . . . . . Overflow Damage 37 | . . . . . 37 Projectiles . | . . . . . . Explosions . | . . . . . . Melee 37 | . . . . . 37 Knockbacks 5 | . . 5 . . . Impact . | . . . . . . Kinetic 5 | . . 5 . . . Secondary . | . . . . . . Self-Inflicted Damage . | . . . . . . Shots . | . . . . . . Rammed . | . . . . . . Targets Rammed . | . . . . . . Kicked . | . . . . . . Crushed . | . . . . . . Highest Temperature 544 | . 242 232 257 . 544 Average Temperature 101 | . 89 63 102 . 128 Received Heat Transfer 2033 | . 9 734 102 . 1188 Effects 4 | . . . . . 4 Shutdowns 3 | . . . . . 3 Energy Bleed 1 | . . . . . 1 Siege Activations . | . . . . . . Martial Activations 1 | . . . . . 1 Total Turns 30 | . . . . . 30 Longest Duration 30 | . . . . . 30 Shielding Activations . | . . . . . . Robots Disrupted . | . . . . . . Combat Hostiles . | . . . . . . Robots Corrupted . | . . . . . . Combat Hostiles . | . . . . . . Parts Fried 1 | . . . . . 1 Impact Corruptions . | . . . . . . Robots Melted . | . . . . . . Combat Hostiles . | . . . . . . Parts Melted 1 | . . . . . 1 Heat Transferred 1025 | . . 150 250 . 625 Parts Sabotaged 2 | . . . . . 2 Parts Stolen . | . . . . . . Parts Stripped . | . . . . . . Power Chain Reactions . | . . . . . . Alert | -11 -10 -10 -7 -7 -5 ------- Run | Yrd Mat Sub Rec Scr Fac Maximum Alert Level 1 | . . . . . 1 Low Security (%) 74 | 100 100 . 100 . 42 Level 1 25 | . . . . . 57 Level 2 . | . . . . . . Level 3 . | . . . . . . Level 4 . | . . . . . . Level 5 . | . . . . . . High Security . | . . . . . . Max Security . | . . . . . . Peak Influence 326 | . 100 . 41 . 326 Initial . | . . . . . . Average 98 | . 55 . 12 . 185 Influence Increases 1549 | . 279 250 224 . 796 Destroy 0b10 Robot/C 860 | . 160 180 20 . 500 Destroy 0b10 Robot/NC 40 | . 20 . 20 . . Destroy Leader 144 | . 34 10 . . 100 Successful Hack 70 | . 19 . 33 . 18 Select Force Hacks 180 | . 30 . 150 . . Disable Machine 30 | . . . . . 30 Destroy Structure 90 | . 1 . 1 . 88 Lose Combat Pursuer 135 | . 15 60 . . 60 Influence Decreases 1353 | . 212 317 224 . 600 Entered New Map 33 | . . 33 . . . Time Decay 1100 | . 212 254 214 . 420 Lost Part 220 | . . 30 10 . 180 Squads Dispatched 8 | . 1 . . . 7 Investigation 3 | . 1 . . . 2 Extermination 2 | . . . . . 2 Reinforcement . | . . . . . . Assault . | . . . . . . Garrison 3 | . . . . . 3 Intercept . | . . . . . . Searches Triggered . | . . . . . . Construction Impeded . | . . . . . . Haulers Reinforced . | . . . . . . Active Scanning Responses . | . . . . . . Cargo Convoy Interrupts 1 | . . . . . 1 Stealth | -11 -10 -10 -7 -7 -5 --------- Run | Yrd Mat Sub Rec Scr Fac Distress Signals 2 | . 1 . . . 1 Communications Jammed . | . . . . . . Distress Signals . | . . . . . . Times Spotted 92 | . 12 29 1 . 50 Peak Tracking Total 15 | . 3 6 1 . 15 Tactical Retreats 5 | . 1 2 . . 2 Traps | -11 -10 -10 -7 -7 -5 ------- Run | Yrd Mat Sub Rec Scr Fac Traps Triggered 7 | . 4 3 . . . Indirectly . | . . . . . . Trap Hack Attempts . | . . . . . . Triggered . | . . . . . . Disarmed . | . . . . . . Reprogrammed . | . . . . . . Reused . | . . . . . . Traps Extracted . | . . . . . . Installed 1 | . . 1 . . . Triggered . | . . . . . . Most Traps Carried 1 | . . 1 . . . Machines | -11 -10 -10 -7 -7 -5 ---------- Run | Yrd Mat Sub Rec Scr Fac Machines Disabled 5 | . . 3 . . 2 Max in Single Turn 1 | . . 1 . . 1 Machines Repaired . | . . . . . . Machines Dismantled . | . . . . . . Machines Sabotaged . | . . . . . . Overloaded Fab Kills . | . . . . . . Hacking | -11 -10 -10 -7 -7 -5 --------- Run | Yrd Mat Sub Rec Scr Fac Machines Accessed 25 | . 4 2 12 2 5 Terminals 8 | . 2 . 6 . . Fabricators 2 | . . . . . 2 Repair Stations . | . . . . . . Recycling Units 9 | . 2 . 6 . 1 Scanalyzers 1 | . . . . . 1 Garrison Access 1 | . . . . . 1 Total Hacks 77 | . 16 5 42 2 12 Successful 43 | . 10 5 22 2 4 Failed 34 | . 6 . 20 . 8 Catastrophic 2 | . 1 . . . 1 Database Lockouts . | . . . . . . Manual 43 | . 11 . 28 . 4 Terminals 38 | . 11 . 27 . . Fabricators 4 | . . . . . 4 Repair Stations . | . . . . . . Recycling Units 23 | . 5 . 15 . 3 Scanalyzers 2 | . . . . . 2 Garrison Access 3 | . . . . . 3 Terminal Hacks 14 | . 2 5 5 2 . Record 5 | . . 4 . 1 . Part Schematic 3 | . . . 3 . . Prototype ID Bank 1 | . . . 1 . . Open Door 1 | . . . . 1 . Recycling Unit Index 1 | . . . 1 . . Locate Traps 1 | . 1 . . . . Zone Layout 1 | . 1 . . . . Proto ID Catalog 1 | . . 1 . . . Fabricator Hacks 1 | . . . . . 1 Network Status 1 | . . . . . 1 Repair Station Hacks . | . . . . . . Recycling Unit Hacks 8 | . 2 . 6 . . Report Inventory 7 | . 2 . 5 . . Retrieve Components 1 | . . . 1 . . Scanalyzer 2 | . . . . . 2 Insert Component 1 | . . . . . 1 Analyze 1 | . . . . . 1 Garrison Access Hacks . | . . . . . . Unauthorized Hacks 18 | . 6 . 11 . 1 Terminals 10 | . 4 . 6 . . Track 1 | . . . 1 . . Botnet 2 | . 1 . 1 . . Operators 1 | . 1 . . . . Skim 6 | . 2 . 4 . . Fabricators . | . . . . . . Repair Stations . | . . . . . . Recycling Units 8 | . 2 . 5 . 1 Recyclers 1 | . 1 . . . . Tunnel 6 | . 1 . 5 . . Fedlink 1 | . . . . . 1 Scanalyzers . | . . . . . . Garrison Access . | . . . . . . Data Cores Recovered . | . . . . . . Used . | . . . . . . Hacking Detections 15 | . 2 . 8 . 5 Full Trace Events 2 | . . . 1 . 1 Feedback Events . | . . . . . . Feedback Blocked . | . . . . . . Robot Schematics Acquired . | . . . . . . Robots Built . | . . . . . . Authchips . | . . . . . . Time . | . . . . . . Total Robot Build Rating . | . . . . . . Part Schematics Acquired 4 | . . . 3 . 1 Parts Built . | . . . . . . Authchips . | . . . . . . Time . | . . . . . . Total Part Build Rating . | . . . . . . Parts Repaired . | . . . . . . Time . | . . . . . . Parts Recycled . | . . . . . . Recycled Matter . | . . . . . . Retrieved Matter . | . . . . . . Retrieved Components 9 | . . . 9 . . Parts Scanalyzed 1 | . . . . . 1 Part Schematics Acquired 1 | . . . . . 1 Parts Damaged . | . . . . . . Bothacking | -11 -10 -10 -7 -7 -5 ------------ Run | Yrd Mat Sub Rec Scr Fac Used RIF Installer . | . . . . . . Robots Hacked 1 | . . . . 1 . Non-combat . | . . . . . . Combat 1 | . . . . 1 . Robot Hacks Applied 1 | . . . . 1 . parse_system 1 | . . . . 1 . Relay Couplers Released . | . . . . . . Fabnet Peak Effective % . | . . . . . . Robots Rewired . | . . . . . . Allies Hacked . | . . . . . . Hacks Repelled . | . . . . . . Allies | -11 -10 -10 -7 -7 -5 -------- Run | Yrd Mat Sub Rec Scr Fac Total Allies . | . . . . . . Largest Group . | . . . . . . Highest-Rated Group . | . . . . . . Highest-Rated Ally . | . . . . . . Total Orders . | . . . . . . Ally Attacks . | . . . . . . Total Damage . | . . . . . . Kills . | . . . . . . Allies Corrupted . | . . . . . . Allies Melted . | . . . . . . Intel | -11 -10 -10 -7 -7 -5 ------- Run | Yrd Mat Sub Rec Scr Fac Active Infowar (turns) 74 | . . 3 71 . . Optics 74 | . . 3 71 . . Robot Analysis Total . | . . . . . . Derelict Logs Recovered 6 | . . 2 . 4 . Drone Launches . | . . . . . . Drone Recoveries . | . . . . . . Exploration | -11 -10 -10 -7 -7 -5 ------------- Run | Yrd Mat Sub Rec Scr Fac Turns Passed 7968 | 46 517 3563 730 2087 1025 Spaces Moved 6157 | 37 325 2998 568 1641 588 Core 2 | 2 . . . . . Treads . | . . . . . . Legs 133 | . . . . . 133 Wheels 6003 | 35 325 2998 568 1641 436 Hover . | . . . . . . Flight 19 | . . . . . 19 Fastest Speed 35 | 50 100 100 105 115 35 Average Speed 108 | 97 103 103 115 115 112 Slowest Speed 230 | 100 115 115 130 130 230 Overloaded Moves 3 | . . . . . 3 Propulsion Burnouts . | . . . . . . Robots Hopped . | . . . . . . Potential Cave-ins . | . . . . . . Cave-ins Triggered . | . . . . . . Exploration Rate (%) 59 | 4 56 97 97 84 17 Regions Visited 5 Branch Regions 3 Pre-discovered Areas 11 | . 1 4 5 1 . Known Exits Taken . | . . . . . . Unknown Exits Taken 5 | 1 1 1 1 1 . Scrap Searched 20 | . . 8 . 12 . Spaces Dug 7 | . . 4 . . 3 Terrain Destroyed 86 | . . 44 1 . 41 Melee 4 | . . 1 . . 3 Projectile 8 | . . 3 1 . 4 AOE 73 | . . 40 . . 33 Terrain Rammed . | . . . . . . Walls Destroyed . | . . . . . . Machines Disabled . | . . . . . . Actions | -11 -10 -10 -7 -7 -5 --------- Run | Yrd Mat Sub Rec Scr Fac Total 7012 | 43 473 3252 624 1844 776 Wait 338 | . 112 22 4 165 35 Move 6152 | 36 324 2997 567 1640 588 Hop . | . . . . . . Pick Up 80 | . 9 30 22 9 10 Fast Attach 71 | 6 4 15 10 9 27 Attach 16 | . . 3 3 1 9 Detach 6 | . . 1 1 . 4 Swap 19 | 1 2 10 1 1 4 Drop 74 | . 5 31 7 18 13 Fire 189 | . 17 117 9 . 46 Melee 44 | . . 3 . 1 40 Ram . | . . . . . . Kick . | . . . . . . Crush . | . . . . . . Escape Stasis . | . . . . . . Rewire . | . . . . . . Trap 1 | . . 1 . . . Miscellaneous 22 | . . 22 . . . Route ------- -11/Scrapyard -10/Materials (discovered 2 exits: [*Mat] / *Sub) -10/Subcaves (discovered 3 exits: [*Mat x2] / *Rec) -7/Recycling (discovered 2 exits: *Fac / *Scr) -7/Scraptown (discovered 2 exits: *Fac x2) -5/Factory (discovered 1 exit: [*Ext]) History --------- Turn | Location | Event 15 | -11/Scrapyard | Discovered new exit (range 16) 47 | -11/Scrapyard | Entered Materials 283 | -10/Materials | Discovered new exit (range 10) 303 | -10/Materials | Build established: Mutant 530 | -10/Materials | Discovered new exit (range 6) 564 | -10/Materials | Entered Subcaves 565 | -10/Subcaves | Approached by a straggling Scientist 614 | -10/Subcaves | Discovered new exit (range 8) 694 | -10/Subcaves | Learned location of Zion (-7) 694 | -10/Subcaves | Met a Zionite searching for "candidates" 813 | -10/Subcaves | Ambushed by Subdwellers from Twisted Machinery 1302 | -10/Subcaves | Visited Clippyterm 1305 | -10/Subcaves | Learned location of Section 7 (-2) 1335 | -10/Subcaves | Disturbed a concealed Subdweller 1387 | -10/Subcaves | Discovered new exit (range 15) 1475 | -10/Subcaves | A swath of the cavern ceiling suddenly collapsed 1913 | -10/Subcaves | Visited 4L-MR0's lab 2121 | -10/Subcaves | Discovered new exit (range 10) 2141 | -10/Subcaves | Core integrity fell below 50% 3093 | -10/Subcaves | A swath of the cavern ceiling suddenly collapsed 3159 | -10/Subcaves | Shifting Twisted Machinery released Sub. Monowheel 3182 | -10/Subcaves | Shifting Twisted Machinery released Shrapnel Trap 3332 | -10/Subcaves | Shifting Twisted Machinery released Mak. Hammer 3333 | -10/Subcaves | Shifting Twisted Machinery released Shrapnel Trap 3437 | -10/Subcaves | Disturbed a concealed Subdweller 3617 | -10/Subcaves | A Subdweller sparked back to life 3617 | -10/Subcaves | A Subdweller sparked back to life 3630 | -10/Subcaves | Found Flightbrick 3968 | -10/Subcaves | Found Prototype Protection 4127 | -10/Subcaves | Entered Recycling 4160 | -7/Recycling | Core integrity fell below 20% 4242 | -7/Recycling | Identified Tower Shield 4243 | -7/Recycling | Attached Tower Shield, gained temporary slots: Power, Propulsion x2, Utility x2, Weapon x2 4569 | -7/Recycling | Build established: Scavenger-Gunner 4713 | -7/Recycling | Discovered new exit (range 15) 4831 | -7/Recycling | Scanned before Scraplab entrance 4847 | -7/Recycling | Entered Scraplab 4856 | -7/Recycling | Discovered new exit (range 2) 4857 | -7/Recycling | Entered Scraptown 4857 | -7/Scraptown | System corruption cleaned by C-Scrubber 5091 | -7/Scraptown | Scanned Subdweller tech in exchange for log data 5094 | -7/Scraptown | Learned Factory terminal intel 5096 | -7/Scraptown | Learned Research stockpile data 5097 | -7/Scraptown | Learned location of 1 exit from Research 5098 | -7/Scraptown | Learned location of Extension (-5) 5112 | -7/Scraptown | Discovered new exit (range 13) 5182 | -7/Scraptown | Visited Fellowship of the Rings 5207 | -7/Scraptown | Visited Red Mages 5253 | -7/Scraptown | Visited Cave Peace 5270 | -7/Scraptown | Visited Symbiants 5288 | -7/Scraptown | Visited Bundlers 5353 | -7/Scraptown | Visited SPCMW 5378 | -7/Scraptown | Visited Comm Corps 5414 | -7/Scraptown | Visited UFD Registry 5414 | -7/Scraptown | Registered with UFD as "Mattercycle" 5591 | -7/Scraptown | Visited Derelict Rescue Squad 5620 | -7/Scraptown | Visited Observation Area 5649 | -7/Scraptown | Visited Junk Repository 5699 | -7/Scraptown | Delivered Scrap Shield to a Scientist 5750 | -7/Scraptown | Visited LU-1G1's Boring Crew 5807 | -7/Scraptown | Visited Scrap Suit Storage 5822 | -7/Scraptown | Visited Sword Containment 5849 | -7/Scraptown | Visited Chapter 10 5875 | -7/Scraptown | Visited Curators Association 5919 | -7/Scraptown | Visited Junk Repository 5979 | -7/Scraptown | Visited DA-N13 Charitable Foundation 5989 | -7/Scraptown | Found DCF Scrap (30 items) 6363 | -7/Scraptown | Build established: Mutant 6507 | -7/Scraptown | Found DRS Beacon 6877 | -7/Scraptown | Met Optimus 6877 | -7/Scraptown | Accepted into 0bPrime 6940 | -7/Scraptown | Discovered new exit (range 3) 6944 | -7/Scraptown | Entered Factory 6944 | -5/Factory | Evolved 10 slots: Propulsion x5, Utility x5 6945 | -5/Factory | Loaded intel: 28 terminal locations 7208 | -5/Factory | Build established: Scavenger-Gunner 7295 | -5/Factory | Loaded intel: 8 recycling unit locations 7303 | -5/Factory | Garrison activated, responded to threat 7581 | -5/Factory | Discovered new exit (range 12) 7757 | -5/Factory | System corruption reached 10% 7901 | -5/Factory | Cargo convoy interrupted 7926 | -5/Factory | Core integrity fell below 50% 7938 | -5/Factory | Core integrity fell below 20% 7939 | -5/Factory | Attached Flightbrick, gained temporary slots: Utility x3 7968 | -5/Factory | Found PL-3XN's Ring of Power 7969 | -5/Factory | Destroyed by G-50 Soldier with Heavy Laser Last Messages --------------- 07951_ Penetrated by Slug. 07951_ M-28 Smith repairs H-66 Slayer. 07952_ P-70 Sage resets G-50 Soldier, system corruption cleaned. 07953_ P-70 Sage resets A-27 Freighter, system corruption cleaned. 07954_ Mak. Flight Unit destroyed. 07955_ P-70 Sage resets X-77 Beamer, system corruption cleaned. 07955_ Penetrated by Slug. 07957_ Slug penetrates Wall. 07958_ CQYJUUZ0 07966_ Acquired Prototype Flight Unit. 07966_ Identified Imp. Diametric Drive. 07967_ U-05 Engineer builds a Wall. 07967_ K-01 Serf destroyed. 07968_ Dropped DRS Beacon. 07968_ Acquired PL-3XN's Ring of Power. Map ----- +----------------------------------------------------+ | ?????????????????????????????????????????????????? | | ?????????????????????????????????????????????????? | | ?########????????????????????????????????????????? | | ?# = !#????????????????????????????????????????? | | ## !!= #????????????????????????????????????????? | | + ! #????????????????????????????????????????? | | # ! = #????????????????????????????????????????? | | # #????????????????????????????????????????? | | + #????????????????????????????????????????? | | ##########??????????????????????????????????????? | | # #?????????????????##???????????????????? | | + """" ?????#############"#???????????????????? | | # """" ?????# #????????????????????? | | # """" ?????# #????????????????????? | | # [ """" #????# """ """ #????????????????????? | | # """" #????# """ """ #????????????????????? | | # """" #????# """ """ #????????????????????? | | + ! """" #????# ] #????????????????????? | | # #????# """ """ #????????????????????? | | ############### """ """ #????????????????????? | | *! !| + """ """ #????????????????????? | | +############### #????????????????????? | | ????????????# = #????????????????????? | | "" #???????????# =! #????????????????????? | | "" #???????????####+##+##############????????????? | | "" #??????????????#=!!%![@ #?#??????????? | | #??????????????#*=!!!=& # #??????????? | | ! #??????????????#%==!= ;#???????????? | | ####??????????????#*=!== ! ##???????????? | | ??????????????????# ! i #????????????? | | #########?????????#^ ! #????????????? | | # #????? #### u #????????????? | | # """ #??? ;;#; ; ;##pg #????????????? | | # Y" #???""" ; ## p ##???????????? | | + """ #??? "hp ;#???????????? | | # #??? * ##???????????? | | # #??? " xg #????????????? | | # #??? " hgg ##???????????? | | # #??? " h = "#???????????? | | + #???? " [%! "#???????"T"?? | | # """" #????? " != !"#????#??"""?? | | # """" #????? = # [*##??F"#??????? | | # """" #????##"""" """"## [%="#"" # | | # """" #??????? # =%/=* " #? | | #] """"?#??????? # =*!%= %" #? | | # """"?????????? # """ %"%["%% """ #? | | # """"?????????? # """ "%% """ """ #? | | # ?????????????? ?+ """ ""% """ """ ????? | | ####????????????????? ?# "%" ????? | | ???????????????????????? ?# """ """ """ ????? | +----------------------------------------------------+ Best States ------------- Heat Dissipation 59 Energy Generation 29 Energy Capacity 365 Matter Stores 300 Matter Capacity 300 Sight Range 21 Terrain Scan Density 10 Armor Coverage 2225 Core Shielding 20 Evasion (%) 70 Targeting Accuracy 8 Melee Accuracy 14 Core Analysis 6 Recoil Reduction 6 Offensive Hacking 14 Item Schematics ----------------- Hcp. Storage Unit | -7/Recycling | Hacked Hacking Suite | -7/Recycling | Hacked Arm. Huge Wheel | -7/Recycling | Hacked Adv. Melee Analysis Suite | -5/Factory | Scanalyzed Robot Schematics ------------------ None Fabricated ------------ Nothing Repaired ---------- Nothing Alien Tech Used ----------------- None Achievements -------------- None Challenges ------------ None Game ------ Seed BurstExperimentalInterpreter Manual? 0 Play Time 01:21:59 Cumulative 301.7 hours Start 2025.05.24 @ 15:37:38 End 2025.05.24 @ 17:03:19 Sessions 1 Manual Loads 0 Difficulty Rogue Special Mode None Game No. 141 Rogue 98 Adventurer 43 Explorer 0 Win Type - Total 6 Types 4/0/1/0/0/0/0/1/0/0 Lore% 82 Gallery% 71 Achievement% 65 Wizard Run 0 Options --------- Layout 0 ASCII 0 Keyboard 0 Movement Numpad Keybinds 0 Fullscreen 1 Font 24/Smallcaps Map View 76x50 Zoom Use 0% Tactical HUD 1 Map Filters NONE Filters NONE Steam 1 RUN: 0815413d-8268-407f-a6ed-6f67b8b10d16